Cogmind - Beta 15 @@@ ROGUE MODE // 2025.09.15 @ 23:29:57 Player: cottonman132 Result: Destroyed by G-34 Mercenary with Small Laser Performance ------------- Evolutions (1) 500 Regions Visited (3) 600 Robots Destroyed (60) 300 Value Destroyed (1198) 1198 Prototype IDs (0) 0 Alien Tech Used (0) 0 Bonus (-142) -142 TOTAL SCORE: 2456 Bonus ------- Friendly Fire -142 Cogmind --------- Core Integrity 0/400 Matter 300/300 Energy 100/100 System Corruption 0% Temperature Cool (6) Movement Core (250) Ox4 Location -9/Materials Parts ------- > --- POWER (1) -------- (None) > --- PROPULSION (3) --- (None) > --- UTILITY (3) ------ Medium Storage Unit Machine Analyzer > --- WEAPON (2) ------- Heavy Mace > --- INVENTORY (10) --- Aluminum Leg Scrap Suit Large Storage Unit Huge Storage Unit Core Shielding Light Armor Plating Shield Generator Peak State ------------ > --- POWER ------------ Light Angular Momentum Engine > --- PROPULSION ------- Aluminum Leg Aluminum Leg Aluminum Leg > --- UTILITY ---------- Medium Storage Unit Machine Analyzer Light Armor Plating > --- WEAPON ----------- Heavy Mace Makeshift Spear > --- INVENTORY -------- Scrap Suit Huge Storage Unit Core Shielding Light Armor Plating Medium Armor Plating Light Assault Rifle Light Assault Rifle [Rating: 21] Favorites ----------- Power Ion Engine Engine Ion Engine Propulsion Aluminum Leg Leg Aluminum Leg Wheel Wheel Utility Machine Analyzer Storage Medium Storage Unit Processor Machine Analyzer Protection Light Armor Plating Weapon Makeshift Spear Ballistic Gun Assault Rifle Impact Weapon Heavy Mace Piercing Weapon Makeshift Spear Build | -11 -10 -10 -9 ------- Run | Yrd Mat Min Mat Slots Evolved 2 | . . . 2 Power . | . . . . Propulsion 1 | . . . 1 Utility 1 | . . . 1 Weapon . | . . . . Parts Attached 25 | 6 2 8 9 Power 4 | 1 . 1 2 Engine 4 | 1 . 1 2 Core . | . . . . Reactor . | . . . . Propulsion 10 | 2 . 5 3 Treads . | . . . . Leg 8 | . . 5 3 Wheel 2 | 2 . . . Hover . | . . . . Flight . | . . . . Utility 7 | 1 2 . 4 Device . | . . . . Storage 3 | 1 1 . 1 Processor 1 | . 1 . . Hackware . | . . . . Protection 3 | . . . 3 Artifact . | . . . . Weapon 4 | 2 . 2 . Energy Gun . | . . . . Energy Cannon . | . . . . Ballistic Gun 2 | 2 . . . Ballistic Cannon . | . . . . Launcher . | . . . . Special Weapon . | . . . . Impact Weapon 1 | . . 1 . Slashing Weapon . | . . . . Piercing Weapon 1 | . . 1 . Special Melee Weapon . | . . . . Unidentified Prototypes . | . . . . Corrupted Parts 1 | . . 1 . System Corruption 4 | . . 4 . Parts Lost 12 | . . 1 11 Power 4 | . . 1 3 Propulsion 5 | . . . 5 Utility 2 | . . . 2 Weapon 1 | . . . 1 Highest Loss Streak 8 | . . 1 8 To Critical Strikes . | . . . . Average Backups 7 | 2 4 8 7 Power . | . 1 . . Propulsion 1 | 1 2 3 . Utility 3 | . . 2 4 Weapon 1 | . . 1 1 Tool/Special . | . . . . Unused Backups 7 | . . 1 6 Power . | . . . . Propulsion 2 | . . 1 1 Utility 4 | . . . 4 Weapon 1 | . . . 1 Tool/Special . | . . . . Average Slot Usage (%) 95 | . 98 91 96 Engine 11 | . 14 13 10 Leg 22 | . . 14 31 Wheel 7 | . 28 14 . Storage 12 | . 14 14 11 Processor 11 | . 12 14 11 Protection 6 | . . . 10 Ballistic Gun 7 | . 28 14 . Impact Weapon 6 | . . . 11 Piercing Weapon 7 | . . 6 9 Peak Build Rating 21 | 6 9 17 21 Average Rating 15 | 3 8 11 18 On Entrance 8 | . 6 9 17 Naked Turns . | . . . . Heaviest Build 37 | 11 16 20 37 Greatest Support 35 | 26 26 26 35 Greatest Overweight (x) 4 | . . . 4 Average Overweight (x) . | . . . . Largest Inventory Capacity 15 | 8 10 10 15 Average Capacity 9 | 7 9 10 10 Most Carried 10 | 5 6 10 10 Average Carried 8 | 2 4 9 8 Final Capacity 10 | 8 10 10 10 Final Carried 9 | 3 6 9 8 Class Distribution -------------------- 57% | Mutant 42% | Scavenger-Mutant Dominant Class ---------------- Mutant | -10/Materials Mutant | -10/Mines Scavenger-Mutant | -9/Materials Resources | -11 -10 -10 -9 ----------- Run | Yrd Mat Min Mat Matter Collected 630 | 234 158 118 120 Remotely . | . . . . Salvage Created 2166 | . 287 436 1443 Parts 138 | . 26 30 82 Haulers Intercepted 5 | . 1 . 4 Recyclers Shooed 2 | . 1 . 1 Parts Field Recycled . | . . . . Retrieved Matter . | . . . . Parts Self-Destructed . | . . . . Prevented . | . . . . Kills | -11 -10 -10 -9 ------- Run | Yrd Mat Min Mat Combat Hostiles Destroyed 33 | . 5 7 21 Melee 24 | . . 5 19 Guns 7 | . 5 2 . Classes Destroyed 13 | . 7 4 2 Worker 4 | . 2 . 2 Builder 2 | . . 1 1 Tunneler 4 | . . 3 1 Hauler 5 | . 1 . 4 Recycler 4 | . . 1 3 Mechanic 2 | . 1 . 1 Operator 3 | . 2 . 1 Watcher 3 | . 2 . 1 Swarmer 8 | . 3 2 3 Grunt 17 | . 2 4 11 Brawler 1 | . . . 1 Sentry 6 | . . . 6 Assembled 1 | . . 1 . Thug 1 | . . 1 . Best Kill Streak 5 | . 5 5 5 Combat Bots Only 4 | . 3 3 4 Max Kills in Single Turn 1 | . 1 1 1 Gunslinging . | . . . . Exploded . | . . . . Melee 1 | . . 1 1 Uniques/NPCs Destroyed . | . . . . Combat | -11 -10 -10 -9 -------- Run | Yrd Mat Min Mat Hostile Shots Fired 238 | . 14 48 176 Missed 71 | . 3 8 60 Hits 167 | . 11 40 116 Melee 3 | . . 1 2 Projectile 164 | . 11 39 114 AOE 2 | . . . 2 Critical Strikes 1 | . . 1 . Damage Taken 2028 | . 108 421 1499 Core 533 | . 43 83 407 Absorbed by Shields . | . . . . Redirected to Shielding 9 | . . . 9 Regen/Repaired (Parts) 132 | . . . 132 Core Remaining (%) 74 | 100 . 49 . Volleys Fired 40 | . 28 12 . Largest 2 | . 2 2 . Hottest 40 | . 40 40 . Shots Fired 80 | . 56 24 . Gun 80 | . 56 24 . Cannon . | . . . . Launcher . | . . . . Special . | . . . . Kinetic 80 | . 56 24 . Thermal . | . . . . Explosive . | . . . . Electromagnetic . | . . . . Robot Hit Streak 11 | . 11 6 . Robot Miss Streak 10 | . 4 10 . Penetration Max . | . . . . Secondary Targets 2 | . 1 1 . Max Gunslinging Chain 1 | . 1 1 . Shots Hit Robots 122 | . 29 24 69 Core Hits 63 | . 20 12 31 Critical Kills . | . . . . Critical Parts Destroyed 2 | . . 1 1 Critical Strikes 13 | . . 3 10 Destroy 1 | . . 1 . Smash 1 | . . . 1 Impale 11 | . . 2 9 Melee Attacks 129 | . . 24 105 Impact 26 | . . . 26 Slashing . | . . . . Piercing 103 | . . 24 79 Sneak Attacks 19 | . . 5 14 Combat Hostiles . | . . . . Follow-up Attacks 8 | . . . 8 Damage Inflicted 3645 | . 353 681 2611 Guns 461 | . 353 108 . Cannons . | . . . . Explosions . | . . . . Melee 3184 | . . 573 2611 Ramming . | . . . . Kinetic 461 | . 353 108 . Thermal . | . . . . Explosive . | . . . . Electromagnetic . | . . . . Impact 551 | . . . 551 Slashing . | . . . . Piercing 2633 | . . 573 2060 Highest Corruption 4 | . . 4 . Average Corruption 4 | . . 4 . Corruption Purged . | . . . . Corruption Blocked . | . . . . Overload Shots . | . . . . Overflow Damage 349 | . . 19 330 Projectiles . | . . . . Explosions . | . . . . Melee 349 | . . 19 330 Knockbacks 4 | . . . 4 Impact 4 | . . . 4 Kinetic . | . . . . Secondary . | . . . . Self-Inflicted Damage . | . . . . Shots . | . . . . Rammed . | . . . . Targets Rammed . | . . . . Kicked . | . . . . Crushed . | . . . . Highest Temperature 18 | . 18 9 2 Average Temperature 7 | . 8 9 2 Received Heat Transfer 684 | . 42 165 477 Siege Activations . | . . . . Martial Activations . | . . . . Shielding Activations . | . . . . Robots Disrupted . | . . . . Combat Hostiles . | . . . . Robots Corrupted 2 | . . . 2 Combat Hostiles 2 | . . . 2 Parts Fried 3 | . . . 3 Impact Corruptions 7 | . . . 7 Robots Melted . | . . . . Combat Hostiles . | . . . . Parts Melted . | . . . . Heat Transferred . | . . . . Parts Sabotaged . | . . . . Parts Stolen . | . . . . Parts Stripped . | . . . . Power Chain Reactions . | . . . . Alert | -11 -10 -10 -9 ------- Run | Yrd Mat Min Mat Maximum Alert Level 1 | . . . 1 Low Security (%) 60 | 100 100 100 33 Level 1 39 | . . . 66 Level 2 . | . . . . Level 3 . | . . . . Level 4 . | . . . . Level 5 . | . . . . High Security . | . . . . Max Security . | . . . . Peak Influence 307 | . 92 70 307 Initial 30 | . . 30 11 Average 128 | . 25 23 200 Influence Increases 1047 | . 170 165 712 Destroy 0b10 Robot/C 640 | . 100 120 420 Destroy 0b10 Robot/NC 135 | . 40 25 70 Destroy Leader 156 | . 26 20 110 Successful Hack 9 | . 4 . 5 Disable Machine 15 | . . . 15 Destroy Structure 2 | . . . 2 Lose Combat Pursuer 90 | . . . 90 Influence Decreases 850 | . 93 213 544 Entered New Map 65 | . . 47 18 Time Decay 675 | . 93 166 416 Lost Part 110 | . . . 110 Squads Dispatched 7 | . 3 . 4 Investigation 2 | . . . 2 Extermination . | . . . . Reinforcement 5 | . 3 . 2 Assault . | . . . . Garrison . | . . . . Intercept . | . . . . Searches Triggered . | . . . . Construction Impeded . | . . . . Haulers Reinforced . | . . . . Active Scanning Responses . | . . . . Cargo Convoy Interrupts . | . . . . Stealth | -11 -10 -10 -9 --------- Run | Yrd Mat Min Mat Distress Signals 5 | . 1 . 4 Communications Jammed . | . . . . Distress Signals . | . . . . Times Spotted 71 | . 11 8 52 Peak Tracking Total 10 | . 4 3 10 Tactical Retreats 6 | . . . 6 Traps | -11 -10 -10 -9 ------- Run | Yrd Mat Min Mat Traps Triggered . | . . . . Indirectly . | . . . . Trap Hack Attempts . | . . . . Triggered . | . . . . Disarmed . | . . . . Reprogrammed . | . . . . Reused . | . . . . Traps Extracted . | . . . . Installed . | . . . . Triggered . | . . . . Machines | -11 -10 -10 -9 ---------- Run | Yrd Mat Min Mat Machines Disabled 1 | . . . 1 Max in Single Turn 1 | . . . 1 Machines Repaired . | . . . . Machines Dismantled . | . . . . Machines Sabotaged . | . . . . Overloaded Fab Kills . | . . . . Hacking | -11 -10 -10 -9 --------- Run | Yrd Mat Min Mat Machines Accessed 11 | . 1 1 9 Terminals 6 | . 1 . 5 Fabricators . | . . . . Repair Stations 2 | . . . 2 Recycling Units 2 | . . . 2 Scanalyzers . | . . . . Garrison Access . | . . . . Total Hacks 22 | . 2 1 19 Successful 13 | . 1 1 11 Failed 9 | . 1 . 8 Catastrophic 2 | . . . 2 Database Lockouts . | . . . . Manual . | . . . . Terminals 10 | . 2 . 8 Fabricators . | . . . . Repair Stations 8 | . . . 8 Recycling Units 3 | . . . 3 Scanalyzers . | . . . . Garrison Access . | . . . . Terminal Hacks 6 | . 1 1 4 Open Door 1 | . . 1 . Locate Traps 2 | . 1 . 1 Zone Layout 3 | . . . 3 Fabricator Hacks . | . . . . Repair Station Hacks 5 | . . . 5 Scan Component 3 | . . . 3 Repair 2 | . . . 2 Recycling Unit Hacks 2 | . . . 2 Report Inventory 2 | . . . 2 Scanalyzer . | . . . . Garrison Access Hacks . | . . . . Unauthorized Hacks . | . . . . Terminals . | . . . . Fabricators . | . . . . Repair Stations . | . . . . Recycling Units . | . . . . Scanalyzers . | . . . . Garrison Access . | . . . . Data Cores Recovered 1 | . . . 1 Used 1 | . . . 1 Hacking Detections 6 | . 1 . 5 Full Trace Events 2 | . . . 2 Feedback Events . | . . . . Feedback Blocked . | . . . . Robot Schematics Acquired . | . . . . Robots Built . | . . . . Authchips . | . . . . Time . | . . . . Total Robot Build Rating . | . . . . Part Schematics Acquired . | . . . . Parts Built . | . . . . Authchips . | . . . . Time . | . . . . Total Part Build Rating . | . . . . Parts Repaired 2 | . . . 2 Time 82 | . . . 82 Parts Recycled . | . . . . Recycled Matter . | . . . . Retrieved Matter . | . . . . Retrieved Components . | . . . . Parts Scanalyzed . | . . . . Part Schematics Acquired . | . . . . Parts Damaged . | . . . . Bothacking | -11 -10 -10 -9 ------------ Run | Yrd Mat Min Mat Used RIF Installer . | . . . . Robots Hacked . | . . . . Non-combat . | . . . . Combat . | . . . . Robot Hacks Applied . | . . . . Relay Couplers Released . | . . . . Fabnet Peak Effective % . | . . . . Robots Rewired . | . . . . Allies Hacked . | . . . . Hacks Repelled . | . . . . Allies | -11 -10 -10 -9 -------- Run | Yrd Mat Min Mat Total Allies . | . . . . Largest Group . | . . . . Highest-Rated Group . | . . . . Highest-Rated Ally . | . . . . Total Orders . | . . . . Ally Attacks . | . . . . Total Damage . | . . . . Kills . | . . . . Allies Corrupted . | . . . . Allies Melted . | . . . . Intel | -11 -10 -10 -9 ------- Run | Yrd Mat Min Mat Active Infowar (turns) 1902 | . 284 432 1186 Machine Analysis 1902 | . 284 432 1186 Robot Analysis Total . | . . . . Derelict Logs Recovered 2 | . . 2 . Drone Launches . | . . . . Drone Recoveries . | . . . . Exploration | -11 -10 -10 -9 ------------- Run | Yrd Mat Min Mat Turns Passed 1990 | 62 310 432 1186 Spaces Moved 1249 | 63 247 320 619 Core 35 | 23 . . 12 Treads . | . . . . Legs 732 | . . 125 607 Wheels 482 | 40 247 195 . Hover . | . . . . Flight . | . . . . Fastest Speed 50 | 50 90 90 120 Average Speed 108 | 75 90 101 122 Slowest Speed 250 | 90 90 120 250 Overloaded Moves . | . . . . Propulsion Burnouts . | . . . . Robots Hopped . | . . . . Potential Cave-ins . | . . . . Cave-ins Triggered . | . . . . Exploration Rate (%) 49 | 3 54 79 63 Regions Visited 3 Branch Regions 1 Pre-discovered Areas 1 | . . 1 . Known Exits Taken . | . . . . Unknown Exits Taken 3 | 1 1 1 . Scrap Searched 2 | . . 2 . Spaces Dug 2 | . . . 2 Terrain Destroyed 2 | . . . 2 Melee 2 | . . . 2 Projectile . | . . . . AOE . | . . . . Terrain Rammed . | . . . . Walls Destroyed . | . . . . Machines Disabled . | . . . . Actions | -11 -10 -10 -9 --------- Run | Yrd Mat Min Mat Total 1672 | 77 284 381 930 Wait 196 | . 2 4 190 Move 1246 | 62 246 319 619 Hop . | . . . . Pick Up 33 | 9 5 7 12 Fast Attach . | . . . . Attach 20 | 6 1 4 9 Detach 1 | . . 1 . Swap 9 | . 1 4 4 Drop 11 | . 1 6 4 Fire 40 | . 28 12 . Melee 116 | . . 24 92 Ram . | . . . . Kick . | . . . . Crush . | . . . . Escape Stasis . | . . . . Rewire . | . . . . Trap . | . . . . Miscellaneous . | . . . . Route ------- -11/Scrapyard -10/Materials (discovered 2 exits: *Mat / *Min) -10/Mines (discovered 2 exits: *Mat x2) -9/Materials (discovered 2 exits: [*Min x2]) History --------- Turn | Location | Event 4 | -11/Scrapyard | Discovered new exit (range 16) 63 | -11/Scrapyard | Entered Materials 241 | -10/Materials | Discovered new exit (range 9) 311 | -10/Materials | Build established: Mutant 345 | -10/Materials | Discovered new exit (range 15) 373 | -10/Materials | Entered Mines 452 | -10/Mines | Found a Scrap Suit stashed away for nefarious purposes 454 | -10/Mines | Found Scrap Suit 469 | -10/Mines | Learned Materials garrison access intel 509 | -10/Mines | Discovered new exit (range 10) 584 | -10/Mines | A weapon hastily lodged in a ceiling crevice suddenly fell to the ground 602 | -10/Mines | Learned location of Zion (-7) 617 | -10/Mines | Met a Derelict who couldn't figure out how to use a Trap Extractor 740 | -10/Mines | Excavation squad dispatched 740 | -10/Mines | A large section of the Mines collapsed 778 | -10/Mines | Core integrity fell below 50% 791 | -10/Mines | Discovered new exit (range 5) 805 | -10/Mines | Entered Materials 805 | -9/Materials | Evolved 2 slots: Propulsion x1, Utility x1 915 | -9/Materials | Repaired Carbon-fiber Leg 1230 | -9/Materials | Discovered new exit (range 17) 1427 | -9/Materials | Repaired Mak. Spear 1429 | -9/Materials | Build established: Scavenger-Mutant 1493 | -9/Materials | Discovered new exit (range 15) 1964 | -9/Materials | Core integrity fell below 50% 1964 | -9/Materials | Core integrity fell below 20% 1991 | -9/Materials | Destroyed by G-34 Mercenary with Small Laser Last Messages --------------- 01915_ Lgt. Armor Plating destroyed. 01915_ Lgt. Angular Momentum Engine destroyed. 01917_ Mak. Spear destroyed. 01917_ K-01 Serf collects debris. 01924_ Lgt. Ion Engine destroyed. 01924_ S-10 Pest destroyed. 01950_ Destroyed Lgt. Ion Engine. 01950_ S-10 Pest system corrupted by crushing effect. 01950_ S-10 Pest knocked back. 01951_ S-10 Pest destroyed. 01954_ Med. Armor Plating destroyed. 01957_ Aluminum Leg destroyed. 01963_ Fusion Modulator explodes. 01963_ G-34 Mercenary destroyed. 01963_ S-10 Pest destroyed. 01963_ Fusion Modulator explodes. 01963_ G-34 Mercenary destroyed. 01963_ S-10 Pest destroyed. 01963_ G-47 Trooper destroyed. Map ----- +----------------------------------------------------+ | ??????????????????# """ #??????????????????? | | ??????????????????# "" """ #??????????????????? | | ??? #############?# S"" #??????????????????? | | ????+ * ## "" ] #??????????????????? | | ????# =%[ ## #??????????????????? | | ???## = #######/###/##??????????????????? | | ??? #???????????????????? | | ??? #######?????????????? | | ??? ^ "" ##+#"""""###???????????? | | ???????######### T" # "#???????????? | | ???????????????# "" ; ]"##??????????? | | ???????????????# ; = " #??????????? | | ???????????????# ;%! " #??????????? | | ???????????????# ![ ;% = " #??????????? | | ????????????#### ! ; " #??????????? | | ????????????#""" ; "##??????????? | | ????????????#"Y o ; "#??????##???? | | ????????????#""" g;" ""#?????## #### | | ????????????#### ; " ###?????# | | ???????????????# #### "####???????# | | ???????????????# "#?# ##??????????# | | ???????????????# ^ T#?# #???????????# !!! | | ???????????????# !** "#?# #???????????# !!! | | ?????# # !** ==! #######??????????# ! | | ?????# # !* [%[ # T ??????????# | | ?????# # =[=@# ??????????# | | ?????# + = # """ """????????# [! | | ?????# # # """ """????#########+# | | ??#### # + """ """????# #=%= | | ??"" # # [! # """ """????# # | | ??"" # #######+#### """ """????# + | | ??"" ######+####???# %= # ??????# # | | ?? #????# #??????# % #######??????# # | | ?? #????# #??????# #????????????# # | | ?? #????# #??????# """ #????????????######## | | ?? #????# #??????# """ #?????????#######???# | | ?? #????# #??????# """ #?????????# #???# | | ??######### #??##############???????# [ ""#???# | | ?? #??# T #???????# ""#???# | | ?? #??# """ [[ #???????# T"#???# | | ?? #??# ! """ [[ #???????# ""#???# | | ?? #??# """ [[ #???????# ""#???# | | ?? ##?# ######### #??## | | ?? #?###########+## ##+####### | | ?? ###### =[%[[ [ % | | ?? [[[ < % T | | ?? !! [ !%= !! | | ??""" """ !] ##" "##+#######=== | | ?""""""""" !] ##" |"! "# #?## [= | | ??""""" " ]] " "" ##"""""""# #??#%=! | +----------------------------------------------------+ Best States ------------- Heat Dissipation 28 Energy Generation 18 Energy Capacity 250 Matter Stores 300 Matter Capacity 300 Sight Range 16 Terrain Scan Density 10 Armor Coverage 225 Core Shielding 20 Evasion (%) 55 Item Schematics ----------------- None Robot Schematics ------------------ None Fabricated ------------ Nothing Repaired ---------- Carbon-fiber Leg | 10% | -9/Materials Mak. Spear | 15% | -9/Materials Alien Tech Used ----------------- None Achievements -------------- None Challenges ------------ None Game ------ Seed TimingBoreShovel Manual? 0 Play Time 00:20:25 Cumulative 10.7 hours Start 2025.09.15 @ 23:10:25 End 2025.09.15 @ 23:29:57 Sessions 1 Manual Loads 0 Difficulty Rogue Special Mode None Game No. 33 Rogue 33 Adventurer 0 Explorer 0 Win Type - Total 0 Types 0/0/0/0/0/0/0/0/0/0 Lore% 19 Gallery% 11 Achievement% 16 Wizard Run 0 Options --------- Layout 2 ASCII 0 Keyboard 0 Movement Mouse Keybinds 0 Fullscreen 1 Font 24/Smallcaps Map View 50x44 Zoom Use 0% Tactical HUD 1 Map Filters NONE Filters NONE Steam 1 RUN: 3d4961e0-0f11-453a-abd4-80fed5a0423d